fUST/lending_fUST_20240730
["ID","MTS","AMOUNT","RATE_DAILY","PERIOD"]
[333609389,1722278771589,-1095.13,0.00013698,2]
[333609390,1722278771611,-500.0,0.00013698,2]
[333609391,1722278771634,-500.0,0.00013698,2]
[333609392,1722278771657,-500.0,0.00013698,2]
[333609393,1722278771679,-500.0,0.00013698,2]
[333609394,1722278771702,-500.0,0.00013698,2]
[333609395,1722278771724,-500.0,0.00013698,2]
[333609396,1722278771746,-573.79663087,0.00013698,2]
[333609397,1722278771771,-500.0,0.00013698,2]
[333609398,1722278771794,-500.0,0.00013698,2]
[333609399,1722278771816,-500.0,0.00013698,2]
[333609400,1722278771839,-500.0,0.00013698,2]
[333609401,1722278771968,-500.0,0.00013698,2]
[333609402,1722278771992,-556.03,0.00013698,2]
[333609403,1722278772018,-534.64043796,0.00013698,2]
[333609404,1722278772043,-529.46,0.00013698,2]
[333609405,1722278772067,-500.0,0.00013698,2]
[333609406,1722278772090,-500.0,0.00013698,2]
[333609407,1722278772112,-500.0,0.00013698,2]
[333609408,1722278772135,-500.0,0.00013698,2]
[333609409,1722278772158,-500.0,0.00013698,2]
[333609410,1722278772182,-2153.16,0.00013698,2]
[333609411,1722278772206,-500.0,0.00013698,2]
[333609412,1722278772230,-500.0,0.00013698,2]
[333609413,1722278772253,-451.32190258,0.00013698,2]
[333609414,1722278772276,-309.18495205,0.00013698,2]
[333609415,1722278772299,-500.0,0.00013698,2]
[333609416,1722278772322,-640.30023333,0.00013698,2]
[333609417,1722278772345,-902.09,0.00013698,2]
[333609418,1722278772368,-500.0,0.00013698,2]
[333609419,1722278772391,-1080.94,0.00013698,2]
[333609420,1722278772416,-500.0,0.00013698,2]
[333609421,1722278772440,-500.0,0.00013698,2]
[333609422,1722278772464,-473.58590118,0.00013698,2]
[333609423,1722278772488,-500.0,0.00013698,2]
[333609424,1722278772510,-348.61308731,0.00013698,2]
[333609425,1722278772533,-500.0,0.00013698,2]
[333609426,1722278772558,-500.0,0.00013698,2]
[333609427,1722278772580,-500.0,0.00013698,2]
[333609428,1722278772603,-500.0,0.00013698,2]
[333609429,1722278772626,-500.0,0.00013698,2]
[333609430,1722278772650,-500.0,0.00013698,2]
[333609431,1722278772675,-485.0,0.00013698,2]
[333609432,1722278772701,-500.0,0.00013698,2]
[333609433,1722278772724,-1191.33,0.00013698,2]
[333609434,1722278772748,-500.0,0.00013698,2]
[333609435,1722278772774,-500.0,0.00013698,2]
[333609436,1722278772797,-500.0,0.00013698,2]
[333609437,1722278772822,-153.9058064,0.00013698,2]
[333609438,1722278772846,-500.0,0.00013698,2]
[333609439,1722278772869,-500.0,0.00013698,2]
[333609440,1722278772891,-500.0,0.00013698,2]
[333609441,1722278772914,-500.0,0.00013698,2]
[333609442,1722278772936,-500.0,0.00013698,2]
[333609443,1722278772959,-500.0,0.00013698,2]
[333609444,1722278772986,-500.0,0.00013698,2]
[333609445,1722278773009,-500.0,0.00013698,2]
[333609446,1722278773033,-500.0,0.00013698,2]
[333609447,1722278773060,-500.0,0.00013698,2]
[333609448,1722278773084,-237.24241707,0.00013698,2]
[333609449,1722278773107,-538.71108877,0.00013698,2]
[333609450,1722278773130,-500.0,0.00013698,2]
[333609451,1722278773153,-500.0,0.00013698,2]
[333609452,1722278773176,-500.0,0.00013698,2]
[333609453,1722278773200,-1659.34,0.00013698,2]
[333609454,1722278773222,-500.0,0.00013698,2]
[333609455,1722278773245,-500.0,0.00013698,2]
[333609456,1722278773268,-500.0,0.00013698,2]
[333609457,1722278773291,-502.7993281,0.00013698,2]
[333609458,1722278773314,-504.88047884,0.00013698,2]
[333609459,1722278773337,-500.0,0.00013698,2]
[333609460,1722278773360,-500.0,0.00013698,2]
[333609461,1722278773384,-500.0,0.00013698,2]
[333609462,1722278773408,-500.35,0.00013698,2]
[333609463,1722278773432,-737.74,0.00013698,2]
[333609464,1722278773456,-500.0,0.00013698,2]
[333609465,1722278773480,-500.0,0.00013698,2]
[333609466,1722278773504,-500.0,0.00013698,2]
[333609467,1722278773530,-500.0,0.00013698,2]
[333609468,1722278773555,-500.0,0.00013698,2]
[333609469,1722278773578,-500.0,0.00013698,2]
[333609470,1722278773601,-500.0,0.00013698,2]
[333609471,1722278773713,-500.0,0.00013698,2]
[333609472,1722278773736,-502.67734686,0.00013698,2]
[333609473,1722278773759,-500.0,0.00013698,2]
[333609474,1722278773787,-500.0,0.00013698,2]
[333609475,1722278773813,-500.0,0.00013698,2]
[333609476,1722278773837,-313.65615021,0.00013698,2]
[333609477,1722278773862,-500.0,0.00013698,2]
[333609478,1722278773885,-500.0,0.00013698,2]
[333609479,1722278773908,-1052.29,0.00013698,2]
[333609480,1722278773934,-623.34,0.00013698,2]
[333609481,1722278773958,-516.98125419,0.00013698,2]
[333609482,1722278773984,-694.48,0.00013698,2]
[333609483,1722278774009,-918.2,0.00013698,2]
[333609484,1722278774036,-520.83,0.00013698,2]
[333609485,1722278774065,-500.0,0.00013698,2]
[333609486,1722278774090,-650.79,0.00013698,2]
[333609487,1722278774115,-500.0,0.00013698,2]
[333609488,1722278774140,-500.0,0.00013698,2]
[333609489,1722278774164,-500.0,0.00013698,2]
[333609490,1722278774187,-500.0,0.00013698,2]
[333609491,1722278774209,-500.0,0.00013698,2]
[333609492,1722278774233,-500.0,0.00013698,2]
[333609493,1722278774257,-500.0,0.00013698,2]
[333609494,1722278774283,-500.0,0.00013698,2]
[333609495,1722278774305,-500.0,0.00013698,2]
[333609496,1722278774327,-500.0,0.00013698,2]
[333609497,1722278774349,-500.0,0.00013698,2]
[333609498,1722278774372,-500.0,0.00013698,2]
[333609499,1722278774395,-500.0,0.00013698,2]
[333609500,1722278774419,-859.15,0.00013698,2]
[333609501,1722278774444,-417.24308385,0.00013698,2]
[333609502,1722278774468,-500.0,0.00013698,2]
[333609503,1722278774490,-500.18655196,0.00013698,2]
[333609504,1722278774512,-500.0,0.00013698,2]
[333609505,1722278774536,-1195.8,0.00013698,2]
[333609506,1722278774560,-500.0,0.00013698,2]
[333609507,1722278774584,-500.0,0.00013698,2]
[333609508,1722278774608,-500.0,0.00013698,2]
[333609509,1722278774631,-500.0,0.00013698,2]
[333609510,1722278774657,-500.0,0.00013698,2]
[333609511,1722278774681,-500.0,0.00013698,2]
[333609512,1722278774704,-500.0,0.00013698,2]
[333609513,1722278774727,-500.0,0.00013698,2]
[333609514,1722278774750,-861.39,0.00013698,2]
[333609515,1722278774776,-500.0,0.00013698,2]
[333609516,1722278774801,-500.0,0.00013698,2]
[333609517,1722278774826,-500.0,0.00013698,2]
[333609518,1722278774852,-502.47871572,0.00013698,2]
[333609519,1722278774877,-645.81,0.00013698,2]
[333609520,1722278774898,-500.0,0.00013698,2]
[333609521,1722278774924,-500.0,0.00013698,2]
[333609522,1722278774948,-500.0,0.00013698,2]
[333609523,1722278774978,-500.0,0.00013698,2]
[333609524,1722278775002,-500.0,0.00013698,2]
[333609525,1722278775028,-1485.14,0.00013698,2]
[333609526,1722278775054,-500.0,0.00013698,2]
[333609527,1722278775080,-500.0,0.00013698,2]
[333609528,1722278775105,-500.0,0.00013698,2]
[333609529,1722278775129,-500.0,0.00013698,2]
[333609530,1722278775153,-500.0,0.00013698,2]
[333609531,1722278775177,-596.72829982,0.00013698,2]
[333609532,1722278775201,-500.0,0.00013698,2]
[333609533,1722278775228,-500.0,0.00013698,2]
[333609534,1722278775253,-500.0,0.00013698,2]
[333609535,1722278775278,-500.0,0.00013698,2]
[333609536,1722278775303,-555.98,0.00013698,2]
[333609537,1722278775419,-500.0,0.00013698,2]
[333609538,1722278775444,-507.33764303,0.00013698,2]
[333609539,1722278775468,-500.0,0.00013698,2]
[333609540,1722278775492,-500.0,0.00013698,2]
[333609541,1722278775516,-500.0,0.00013698,2]
[333609542,1722278775544,-512.45552143,0.00013698,2]
[333609543,1722278775567,-500.0,0.00013698,2]
[333609544,1722278775590,-500.0,0.00013698,2]
[333609545,1722278775613,-177.19803536,0.00013698,2]
[333609546,1722278775636,-505.23297808,0.00013698,2]
[333609547,1722278775660,-500.0,0.00013698,2]
[333609548,1722278775684,-500.0,0.00013698,2]
[333609549,1722278775707,-500.0,0.00013698,2]
[333609550,1722278775730,-511.1378621,0.00013698,2]
[333609551,1722278775753,-500.0,0.00013698,2]
[333609552,1722278775780,-1405.41,0.00013698,2]
[333609553,1722278775803,-500.0,0.00013698,2]
[333609554,1722278775826,-385.16598119,0.00013698,2]
[333609555,1722278775849,-502.53453976,0.00013698,2]
[333609556,1722278775872,-500.0,0.00013698,2]
[333609557,1722278775896,-500.0,0.00013698,2]
[333609558,1722278775919,-500.0,0.00013698,2]
[333609559,1722278775942,-500.0,0.00013698,2]
[333609560,1722278775967,-500.0,0.00013698,2]
[333609561,1722278775992,-992.6,0.00013698,2]
[333609562,1722278776017,-706.22,0.00013698,2]
[333609563,1722278776046,-500.0,0.00013698,2]
[333609564,1722278776072,-885.9,0.00013698,2]
[333609565,1722278776096,-505.33695051,0.00013698,2]
[333609566,1722278776119,-500.0,0.00013698,2]
[333609567,1722278776145,-500.0,0.00013698,2]
[333609568,1722278776170,-500.0,0.00013698,2]
[333609569,1722278776193,-500.0,0.00013698,2]
[333609570,1722278776219,-500.0,0.00013698,2]
[333609571,1722278776242,-296.02832043,0.00013698,2]
[333609572,1722278776265,-500.0,0.00013698,2]
[333609573,1722278776290,-500.0,0.00013698,2]
[333609574,1722278776313,-500.0,0.00013698,2]
[333609575,1722278776336,-500.0,0.00013698,2]
[333609576,1722278776359,-325.34352641,0.00013698,2]
[333609577,1722278776381,-503.15214971,0.00013698,2]
[333609578,1722278776404,-500.0,0.00013698,2]
[333609579,1722278776427,-500.0,0.00013698,2]
[333609580,1722278776450,-500.0,0.00013698,2]
[333609581,1722278776473,-500.0,0.00013698,2]
[333609582,1722278776496,-500.0,0.00013698,2]
[333609583,1722278776519,-528.24,0.00013698,2]
[333609584,1722278776542,-500.0,0.00013698,2]
[333609585,1722278776567,-170.0,0.00013698,2]
[333609586,1722278776590,-500.0,0.00013698,2]
[333609587,1722278776614,-500.0,0.00013698,2]
[333609588,1722278776640,-500.0,0.00013698,2]
[333609589,1722278776668,-500.0,0.00013698,2]
[333609590,1722278776692,-500.0,0.00013698,2]
[333609591,1722278776719,-500.0,0.00013698,2]
[333609592,1722278776744,-500.0,0.00013698,2]
[333609593,1722278776767,-500.0,0.00013698,2]
[333609594,1722278776792,-500.0,0.00013698,2]
[333609595,1722278776815,-500.0,0.00013698,2]
[333609596,1722278776838,-280.05291229,0.00013698,2]
[333609597,1722278776864,-509.59509646,0.00013698,2]
[333609598,1722278776887,-500.0,0.00013698,2]
[333609600,1722278776911,-723.07,0.00013698,2]
[333609601,1722278776933,-500.0,0.00013698,2]
[333609602,1722278776957,-500.0,0.00013698,2]
[333609603,1722278777065,-500.0,0.00013698,2]
[333609604,1722278777089,-500.0,0.00013698,2]
[333609605,1722278777113,-500.0,0.00013698,2]
[333609606,1722278777137,-500.0,0.00013698,2]
[333609607,1722278777161,-500.0,0.00013698,2]
[333609608,1722278777185,-500.0,0.00013698,2]
[333609609,1722278777208,-500.0,0.00013698,2]
[333609610,1722278777232,-500.0,0.00013698,2]
[333609611,1722278777254,-500.0,0.00013698,2]
[333609612,1722278777279,-954.6,0.00013698,2]
[333609613,1722278777304,-754.05,0.00013698,2]
[333609614,1722278777327,-754.05,0.00013698,2]
[333609615,1722278777351,-754.05,0.00013698,2]
[333609616,1722278777375,-754.05,0.00013698,2]
[333609617,1722278777403,-754.05,0.00013698,2]
[333609618,1722278777428,-500.0,0.00013698,2]
[333609619,1722278777452,-754.05,0.00013698,2]
[333609620,1722278777475,-754.05,0.00013698,2]
[333609621,1722278777500,-691.83,0.00013698,2]
[333609622,1722278777523,-754.05,0.00013698,2]
[333609623,1722278777546,-501.53184889,0.00013698,2]
[333609624,1722278777569,-757.62,0.00013698,2]
[333609625,1722278777593,-754.05,0.00013698,2]
[333609626,1722278777615,-500.0,0.00013698,2]
[333609627,1722278777638,-754.05,0.00013698,2]
[333609628,1722278777661,-500.0,0.00013698,2]
[333609629,1722278777686,-1033.47,0.00013698,2]
[333609630,1722278777711,-754.05,0.00013698,2]
[333609631,1722278777735,-951.18,0.00013698,2]
[333609632,1722278777759,-754.05,0.00013698,2]
[333609633,1722278777786,-754.05,0.00013698,2]
[333609634,1722278777811,-754.05,0.00013698,2]
[333609635,1722278777834,-842.16,0.00013698,2]
[333609636,1722278777857,-754.05,0.00013698,2]
[333609637,1722278777881,-754.05,0.00013698,2]
[333609638,1722278777904,-500.0,0.00013698,2]
[333609639,1722278777928,-754.05,0.00013698,2]
[333609640,1722278777954,-9683.42,0.00013698,2]
[333609641,1722278777980,-500.0,0.00013698,2]
[333609642,1722278778004,-537.06008917,0.00013698,2]
[333609643,1722278778029,-500.0,0.00013698,2]
[333609644,1722278778054,-500.0,0.00013698,2]
[333609645,1722278778078,-500.0,0.00013698,2]
[333609646,1722278778102,-887.07,0.00013698,2]
[333609647,1722278778126,-500.0,0.00013698,2]
[333609648,1722278778152,-504.79825388,0.00013698,2]
[333609649,1722278778177,-500.0,0.00013698,2]
[333609650,1722278778202,-500.0,0.00013698,2]
[333609651,1722278778229,-2648.05,0.00013698,2]
[333609652,1722278778256,-4343.11,0.00013698,2]
[333609653,1722278778281,-500.0,0.00013698,2]
[333609654,1722278778304,-500.0,0.00013698,2]
[333609655,1722278778327,-500.0,0.00013698,2]
[333609656,1722278778352,-500.0,0.00013698,2]
[333609657,1722278778375,-500.0,0.00013698,2]
[333609658,1722278778399,-500.0,0.00013698,2]
[333609659,1722278778422,-501.71983091,0.00013698,2]
[333609660,1722278778446,-500.0,0.00013698,2]
[333609661,1722278778469,-500.0,0.00013698,2]
[333609662,1722278778492,-928.38,0.00013698,2]
[333609663,1722278778516,-1601.19,0.00013698,2]
[333609664,1722278778539,-500.0,0.00013698,2]
[333609665,1722278778653,-500.0,0.00013698,2]
[333609666,1722278778680,-4639.22,0.00013698,2]
[333609667,1722278778704,-2992.67,0.00013698,2]
[333609668,1722278778727,-525.94400943,0.00013698,2]
[333609669,1722278778749,-500.0,0.00013698,2]
[333609670,1722278778772,-500.0,0.00013698,2]
[333609671,1722278778797,-500.0,0.00013698,2]
[333609672,1722278778821,-1072.49,0.00013698,2]
[333609673,1722278778844,-500.0,0.00013698,2]
[333609674,1722278778867,-609.59945594,0.00013698,2]
[333609675,1722278778892,-500.0,0.00013698,2]
[333609676,1722278778915,-505.35601644,0.00013698,2]
[333609677,1722278778944,-6281.74,0.00013698,2]
[333609678,1722278778971,-500.0,0.00013698,2]
[333609679,1722278778994,-500.0,0.00013698,2]
[333609680,1722278779020,-184.67716535,0.00013698,2]
[333609681,1722278779049,-500.0,0.00013698,2]
[333609682,1722278779074,-500.0,0.00013698,2]
[333609683,1722278779097,-500.0,0.00013698,2]
[333609684,1722278779122,-1501.41,0.00013698,2]
[333609685,1722278779148,-500.0,0.00013698,2]
[333609686,1722278779173,-500.0,0.00013698,2]
[333609687,1722278779196,-500.0,0.00013698,2]
[333609688,1722278779220,-500.0,0.00013698,2]
[333609689,1722278779243,-365.00000002,0.00013698,2]
[333609690,1722278779267,-500.0,0.00013698,2]
[333609691,1722278779291,-1215.64,0.00013698,2]
[333609692,1722278779318,-728.84,0.00013698,2]
[333609693,1722278779342,-1456.91,0.00013698,2]
[333609694,1722278779366,-1607.08,0.00013698,2]
[333609695,1722278779391,-500.0,0.00013698,2]
[333609696,1722278779417,-500.0,0.00013698,2]
[333609697,1722278779441,-775.89,0.00013698,2]
[333609698,1722278779465,-500.0,0.00013698,2]
[333609699,1722278779490,-500.0,0.00013698,2]
[333609700,1722278779514,-500.0,0.00013698,2]
[333609701,1722278779541,-1454.84,0.00013698,2]
[333609702,1722278779564,-500.0,0.00013698,2]
[333609703,1722278779590,-3019.0,0.00013698,2]
[333609704,1722278779614,-542.74,0.00013698,2]
[333609705,1722278779639,-500.0,0.00013698,2]
[333609706,1722278779663,-1502.22,0.00013698,2]
[333609707,1722278779686,-500.0,0.00013698,2]
[333609708,1722278779709,-500.0,0.00013698,2]
[333609709,1722278779733,-585.95,0.00013698,2]
[333609710,1722278779757,-1386.12,0.00013698,2]
[333609711,1722278779782,-500.0,0.00013698,2]
[333609712,1722278779805,-500.0,0.00013698,2]
[333609713,1722278779828,-500.0,0.00013698,2]
[333609714,1722278779852,-531.05614074,0.00013698,2]
[333609715,1722278779875,-500.0,0.00013698,2]
[333609716,1722278779898,-1061.26,0.00013698,2]
[333609717,1722278779921,-500.0,0.00013698,2]
[333609718,1722278779945,-500.0,0.00013698,2]
[333609719,1722278779973,-500.0,0.00013698,2]
[333609720,1722278779996,-500.0,0.00013698,2]
[333609721,1722278780022,-500.0,0.00013698,2]
[333609722,1722278780050,-961.26,0.00013698,2]
[333609723,1722278780074,-500.0,0.00013698,2]
[333609724,1722278780179,-500.0,0.00013698,2]
[333609725,1722278780205,-500.0,0.00013698,2]
[333609726,1722278780229,-669.11,0.00013698,2]
[333609727,1722278780253,-500.0,0.00013698,2]
[333609728,1722278780276,-500.0,0.00013698,2]
[333609729,1722278780301,-1177.83,0.00013698,2]
[333609730,1722278780326,-500.0,0.00013698,2]
[333609731,1722278780349,-1311.37,0.00013698,2]
[333609732,1722278780374,-1163.62,0.00013698,2]
[333609733,1722278780399,-1117.01,0.00013698,2]
[333609734,1722278780422,-500.0,0.00013698,2]
[333609735,1722278780446,-500.0,0.00013698,2]
[333609736,1722278780471,-652.31,0.00013698,2]
[333609737,1722278780493,-500.0,0.00013698,2]
[333609738,1722278780518,-1936.32,0.00013698,2]
[333609739,1722278780543,-500.0,0.00013698,2]
[333609740,1722278780566,-500.0,0.00013698,2]
[333609741,1722278780591,-1529.33,0.00013698,2]
[333609742,1722278780613,-500.0,0.00013698,2]
[333609743,1722278780639,-500.0,0.00013698,2]
[333609744,1722278780667,-1244.36,0.00013698,2]
[333609745,1722278780691,-500.0,0.00013698,2]
[333609746,1722278780716,-500.0,0.00013698,2]
[333609747,1722278780741,-500.0,0.00013698,2]
[333609748,1722278780765,-500.0,0.00013698,2]
[333609749,1722278780791,-1929.82,0.00013698,2]
[333609750,1722278780815,-433.44925268,0.00013698,2]
[333609817,1722279032133,-160.08287463,9.999e-05,2]
[333609819,1722279032143,-806.84859202,9.999e-05,2]
[333609822,1722279032155,-287.62828496,0.0001,2]
[333609824,1722279032165,-200.0,0.00012986,2]
[333609826,1722279032175,-300.0,0.00013597,2]
[333609828,1722279032184,-1927.34892272,0.00013598,2]
[333609830,1722279032196,-1258.15108834,0.00013598,2]
[333609969,1722279038494,-348.0,0.00013598,2]
[333609972,1722279038508,-1343.16806918,0.00013598,2]
[333609974,1722279038522,-1401.46660029,0.000136,2]
[333609977,1722279038534,-292970.643613,0.00013688,2]
[333609979,1722279038546,-5903.8556443,0.00013698,5]
[333609981,1722279038556,-66.55074732,0.00013698,2]
[333609983,1722279038566,-500.0,0.00013698,2]
[333609985,1722279038575,-500.0,0.00013698,2]
[333609987,1722279038584,-500.0,0.00013698,2]
[333609989,1722279038594,-500.0,0.00013698,2]
[333609991,1722279038604,-500.0,0.00013698,2]
[333609993,1722279038613,-500.0,0.00013698,2]
[333609995,1722279038623,-445.9911003,0.00013698,2]
[333609997,1722279038633,-500.0,0.00013698,2]
[333609999,1722279038642,-500.0,0.00013698,2]
[333610001,1722279038653,-500.0,0.00013698,2]
[333610003,1722279038662,-500.0,0.00013698,2]
[333610005,1722279038672,-507.30241532,0.00013698,2]
[333610007,1722279038682,-500.0,0.00013698,2]
[333610009,1722279038691,-500.0,0.00013698,2]
[333610011,1722279038701,-570.08,0.00013698,2]
[333610013,1722279038711,-500.0,0.00013698,2]
[333610015,1722279038720,-515.53200466,0.00013698,2]
[333610016,1722279038729,-500.0,0.00013698,2]
[333610018,1722279038739,-500.0,0.00013698,2]
[333610020,1722279038749,-500.0,0.00013698,2]
[333610022,1722279038759,-500.0,0.00013698,2]
[333610024,1722279038770,-500.0,0.00013698,2]
[333610026,1722279038780,-500.0,0.00013698,2]
[333610027,1722279038792,-500.0,0.00013698,2]
[333610028,1722279038804,-542.16921567,0.00013698,2]
[333610029,1722279038814,-500.0,0.00013698,2]
[333610030,1722279038825,-500.0,0.00013698,2]
[333610031,1722279038837,-500.0,0.00013698,2]
[333610032,1722279038848,-160.8196939,0.00013698,2]
[333610033,1722279038859,-515.65798162,0.00013698,2]
[333610034,1722279038868,-500.0,0.00013698,2]
[333610035,1722279038877,-502.20136358,0.00013698,2]
[333610036,1722279038887,-500.0,0.00013698,2]
[333610037,1722279038896,-500.0,0.00013698,2]
[333610038,1722279038907,-500.0,0.00013698,2]
[333610039,1722279038919,-500.0,0.00013698,2]
[333610040,1722279038932,-500.0,0.00013698,2]
[333610041,1722279038943,-500.0,0.00013698,2]
[333610042,1722279038954,-500.0,0.00013698,2]
[333610043,1722279038964,-500.0,0.00013698,2]
[333610044,1722279038973,-500.0,0.00013698,2]
[333610045,1722279038984,-500.0,0.00013698,2]
[333610046,1722279038993,-500.0,0.00013698,2]
[333610047,1722279039003,-500.0,0.00013698,2]
[333610048,1722279039014,-500.0,0.00013698,2]
[333610049,1722279039023,-500.0,0.00013698,2]
[333610050,1722279039033,-500.0,0.00013698,2]
[333610051,1722279039043,-714.31,0.00013698,2]
[333610052,1722279039056,-500.0,0.00013698,2]
[333610053,1722279039066,-500.0,0.00013698,2]
[333610054,1722279039146,-500.0,0.00013698,2]
[333610055,1722279039157,-500.0,0.00013698,2]
[333610056,1722279039167,-500.0,0.00013698,2]
[333610057,1722279039176,-500.0,0.00013698,2]
[333610058,1722279039186,-500.0,0.00013698,2]
[333610059,1722279039196,-652.11,0.00013698,2]
[333610060,1722279039205,-500.0,0.00013698,2]
[333610061,1722279039215,-500.0,0.00013698,2]
[333610062,1722279039225,-550.91006411,0.00013698,2]
[333610063,1722279039235,-500.0,0.00013698,2]
[333610064,1722279039245,-500.0,0.00013698,2]
[333610065,1722279039255,-500.0,0.00013698,2]
[333610066,1722279039267,-500.0,0.00013698,2]
[333610067,1722279039277,-500.0,0.00013698,2]
[333610068,1722279039287,-500.0,0.00013698,2]
[333610069,1722279039297,-500.0,0.00013698,2]
[333610070,1722279039306,-500.0,0.00013698,2]
[333610071,1722279039316,-500.0,0.00013698,2]
[333610072,1722279039325,-500.0,0.00013698,2]
[333610073,1722279039335,-500.0,0.00013698,2]
[333610074,1722279039344,-500.0,0.00013698,2]
[333610075,1722279039353,-500.0,0.00013698,2]
[333610076,1722279039363,-500.0,0.00013698,2]
[333610077,1722279039373,-500.0,0.00013698,2]
[333610078,1722279039382,-500.0,0.00013698,2]
[333610079,1722279039392,-500.0,0.00013698,2]
[333610080,1722279039401,-500.0,0.00013698,2]
[333610081,1722279039411,-500.0,0.00013698,2]
[333610082,1722279039420,-501.19575178,0.00013698,2]
[333610083,1722279039430,-500.0,0.00013698,2]
[333610084,1722279039440,-500.0,0.00013698,2]
[333610085,1722279039449,-500.0,0.00013698,2]
[333610086,1722279039459,-564.89,0.00013698,2]
[333610087,1722279039470,-500.0,0.00013698,2]
[333610088,1722279039479,-500.0,0.00013698,2]
[333610089,1722279039488,-500.0,0.00013698,2]
[333610090,1722279039498,-500.0,0.00013698,2]
[333610091,1722279039507,-500.0,0.00013698,2]
[333610092,1722279039516,-510.3836282,0.00013698,2]
[333610093,1722279039526,-500.0,0.00013698,2]
[333610094,1722279039536,-500.0,0.00013698,2]
[333610095,1722279039548,-500.0,0.00013698,2]
[333610096,1722279039558,-500.0,0.00013698,2]
[333610097,1722279039568,-500.0,0.00013698,2]
[333610098,1722279039578,-500.0,0.00013698,2]
[333610099,1722279039587,-506.82536194,0.00013698,2]
[333610100,1722279039597,-500.0,0.00013698,2]
[333610101,1722279039606,-500.0,0.00013698,2]
[333610102,1722279039616,-683.84,0.00013698,2]
[333610103,1722279039625,-500.0,0.00013698,2]
[333610104,1722279039635,-500.0,0.00013698,2]
[333610105,1722279039646,-705.39,0.00013698,2]
[333610106,1722279039666,-500.0,0.00013698,2]
[333610107,1722279039683,-500.0,0.00013698,2]
[333610108,1722279039701,-500.0,0.00013698,2]
[333610109,1722279039720,-500.0,0.00013698,2]
[333610112,1722279039740,-500.0,0.00013698,2]
[333610114,1722279039757,-500.0,0.00013698,2]
[333610116,1722279039777,-194.11208995,0.00013698,2]
[333610117,1722279039792,-203.45913774,0.00013698,2]
[333610118,1722279039808,-195.99602032,0.00013698,2]
[333610119,1722279039827,-500.0,0.00013698,2]
[333610120,1722279039849,-500.0,0.00013698,2]
[333610121,1722279039863,-500.0,0.00013698,2]
[333610122,1722279039880,-500.0,0.00013698,2]
[333610123,1722279039895,-500.0,0.00013698,2]
[333610124,1722279039912,-500.0,0.00013698,2]
[333610125,1722279039925,-456.77093599,0.00013698,2]
[333610126,1722279039939,-418.20098854,0.00013698,2]
[333610127,1722279039954,-500.0,0.00013698,2]
[333610128,1722279039968,-500.0,0.00013698,2]
[333610129,1722279039982,-500.0,0.00013698,2]
[333610130,1722279039996,-1483.01,0.00013698,2]
[333610131,1722279040011,-500.0,0.00013698,2]
[333610132,1722279040026,-500.0,0.00013698,2]
[333610133,1722279040042,-13162.02,0.00013698,2]